bitfinex/quotes_ETHUSD_20251011
["timestamp","ask_amount","ask_price","bid_price","bid_amount"]
[1760187737982,5.02783423,3829.9,3829.8,14.6304]
[1760187738188,5.02783423,3829.9,3829.8,14.5]
[1760187738189,6.00721448,3829.9,3829.8,14.5]
[1760187738391,7.92721448,3829.9,3829.8,14.5]
[1760187738607,2.61167525,3829.0,3828.6,0.002]
[1760187738893,1.973,3828.9,3828.6,0.002]
[1760187739102,2.61185258,3828.7,3828.6,0.002]
[1760187739307,1.973,3828.7,3828.6,0.002]
[1760187739626,1.973,3828.7,3828.6,14.502]
[1760187739792,4.58485258,3828.7,3828.6,15.9522]
[1760187739991,1.973,3828.7,3828.6,15.9522]
[1760187740191,1.973,3828.7,3828.6,15.9686]
[1760187742227,1.92,3830.3,3828.6,15.9686]
[1760187742432,2.61125119,3829.6,3828.8,2.61176113]
[1760187742657,2.61125119,3829.6,3828.9,1.88676513]
[1760187742658,1.973,3829.5,3828.9,1.88676513]
[1760187742829,1.973,3829.5,3828.9,0.02611716]
[1760187743150,4.5307078,3830.4,3829.4,14.5]
[1760187743151,2.61118351,3829.7,3829.4,14.5]
[1760187743352,0.13060267,3835.9,3829.4,14.5]
[1760187743353,0.6773961,3830.8,3829.4,14.5]
[1760187743649,2.611104,3829.8,3828.8,0.0164]
[1760187743836,2.61101389,3830.0,3828.9,0.65971716]
[1760187744149,1.92,3830.4,3829.6,14.5]
[1760187744351,2.61095703,3830.1,3829.6,14.5]
[1760187744555,2.61097039,3830.0,3829.6,14.5164]
[1760187744777,1.973,3829.9,3829.6,15.67560837]
[1760187744937,2.61028452,3831.0,3829.7,0.0425117]
[1760187745258,4.58335341,3830.9,3829.8,2.62748201]
[1760187745470,4.58342079,3830.8,3830.4,14.5]
[1760187745762,2.61062524,3830.5,3830.4,14.5]
[1760187745968,4.58362524,3830.5,3830.4,14.5]
[1760187747044,5.74683798,3830.5,3830.4,14.5]
[1760187747243,2.61117058,3829.7,3829.6,0.002]
[1760187747561,6.50417058,3829.7,3829.6,0.002]
[1760187747865,6.94797058,3829.7,3829.6,0.002]
[1760187750526,2.61117058,3829.7,3829.6,0.002]
[1760187750875,4.58417058,3829.7,3829.6,0.002]
[1760187751861,2.61117058,3829.7,3829.6,0.002]
[1760187752038,1.973,3829.7,3829.6,0.002]
[1760187752746,1.973,3829.7,3829.6,14.502]
[1760187753133,4.58417058,3829.7,3829.6,14.502]
[1760187753948,5.02797058,3829.7,3829.6,14.502]
[1760187755159,4.58417058,3829.7,3829.6,14.502]
[1760187755561,1.973,3829.7,3829.6,15.9522]
[1760187755775,1.973,3829.7,3829.6,15.9686]
[1760187755935,1.973,3829.7,3829.6,15.9522]
[1760187756640,4.58417058,3829.7,3829.6,14.502]
[1760187757032,1.973,3829.7,3829.6,14.502]
[1760187758451,4.58417058,3829.7,3829.6,14.502]
[1760187758972,1.973,3829.7,3829.6,14.502]
[1760187760385,1.972,3829.7,3829.6,14.502]
[1760187760665,1.972,3829.7,3829.6,19.1021062]
[1760187761066,2.61074087,3830.4,3829.6,19.1021062]
[1760187761237,1.972,3830.3,3829.6,19.1021062]
[1760187761439,2.61056406,3830.6,3829.7,2.61117058]
[1760187761643,1.972,3830.5,3829.8,2.6275024]
[1760187761839,1.972,3830.5,3829.9,3.13508429]
[1760187762053,1.972,3830.5,3830.0,0.0164]
[1760187762264,1.972,3830.5,3830.1,0.0164]
[1760187762461,1.972,3830.5,3830.2,0.0164]
[1760187762674,2.61074428,3830.4,3829.6,2.6132195]
[1760187762971,0.4739,3831.1,3829.8,2.6111024]
[1760187762972,1.972,3830.3,3829.8,2.6111024]
[1760187763172,1.972,3830.2,3829.8,0.0164]
[1760187763389,1.972,3830.2,3829.8,2.61104778]
[1760187763593,1.972,3830.2,3829.9,0.0164]
[1760187763889,1.972,3830.2,3830.1,0.1304]
[1760187766602,0.001,3831.0,3829.9,0.02611034]
[1760187766765,0.001,3831.0,3830.1,0.1468]
[1760187766766,2.61050041,3830.7,3830.1,0.1468]
[1760187766959,1.972,3830.6,3830.1,2.65337277]
[1760187767285,1.972,3830.6,3830.1,0.30784625]
[1760187767481,2.61043635,3830.8,3830.5,0.1304]
[1760187767669,0.001,3831.0,3830.5,0.1468]
[1760187767870,1.971,3830.9,3830.5,0.0164]
[1760187768073,1.971,3830.9,3830.3,0.02610761]
[1760187768074,1.971,3830.9,3830.6,0.0164]
[1760187768387,1.971,3830.9,3830.8,0.1304]
[1760187768588,4.58135265,3830.9,3830.8,0.1304]
[1760187768758,1.971,3830.9,3830.8,0.1304]
[1760187769188,0.001,3831.0,3830.8,0.1304]
[1760187769389,1.971,3830.9,3830.8,0.1304]
[1760187769556,1.971,3830.9,3830.8,0.1468]
[1760187769757,1.971,3830.9,3830.8,0.1304]
[1760187771896,4.58135265,3830.9,3830.8,0.1304]
[1760187772798,0.001,3831.0,3829.9,1.92]
[1760187773006,1.971,3830.9,3830.2,0.0164]
[1760187773173,1.971,3830.9,3830.0,0.192]
[1760187773366,2.61042079,3830.8,3830.0,0.192]
[1760187773786,4.5813547,3830.9,3830.0,2.80296169]
[1760187773787,2.61050027,3830.7,3830.0,2.80296169]
[1760187774109,0.001,3831.0,3830.1,2.61088973]
[1760187774110,1.971,3830.6,3830.1,2.61088973]
[1760187774267,1.971,3830.6,3830.2,0.28028897]
[1760187774466,1.971,3830.6,3830.2,2.90751736]
[1760187774797,1.971,3830.6,3830.2,0.29668897]
[1760187775892,4.5815655,3830.6,3830.0,0.192]
[1760187776098,1.971,3830.6,3830.0,0.192]
[1760187776495,1.971,3830.6,3830.0,2.80296012]
[1760187776997,1.971,3830.6,3830.0,0.192]
[1760187777203,1.971,3830.6,3830.1,2.61085053]
[1760187777378,1.971,3830.6,3830.2,0.29832505]
[1760187777580,1.971,3830.6,3830.3,0.0164]
[1760187777887,1.97,3830.5,3830.4,0.0164]
[1760187780396,1.97,3830.5,3830.4,0.04250693]
[1760187780597,1.97,3830.5,3830.4,0.0164]
[1760187780806,1.97,3830.5,3830.4,0.54020297]
[1760187781009,0.001,3831.0,3830.5,2.61062524]
[1760187781228,1.97,3830.9,3830.5,2.62702524]
[1760187781531,1.97,3830.9,3830.6,0.0164]
[1760187781820,1.97,3830.9,3830.4,0.52380297]
[1760187781821,1.97,3830.8,3830.5,2.61062524]
[1760187781994,1.97,3830.8,3830.6,0.57615411]
[1760187782396,1.97,3830.8,3830.2,2.61076603]
[1760187782596,1.97,3830.8,3830.3,2.61075509]
[1760187782824,1.97,3830.8,3830.7,0.1304]
[1760187783327,2.4158,3830.8,3829.7,0.0164]
[1760187783499,2.61107702,3829.9,3829.1,0.0164]
[1760187783694,0.001,3831.0,3829.1,0.0164]
[1760187783695,4.58110744,3829.8,3829.1,0.0164]
[1760187783899,4.58117058,3829.7,3829.1,0.0164]
[1760187784096,4.58117058,3829.7,3828.7,0.0164]
[1760187784293,5.02697058,3829.7,3828.7,0.0164]
[1760187784498,4.58117058,3829.7,3828.7,0.0164]
[1760187785316,4.58117058,3829.7,3828.7,2.62823852]
[1760187785524,4.58117058,3829.7,3828.8,2.61172525]
[1760187785829,4.58117058,3829.7,3828.7,2.62823685]
[1760187786930,4.58117058,3829.7,3828.8,2.61176986]
[1760187787334,4.58117058,3829.7,3828.7,2.62823812]
[1760187787899,4.58117058,3829.7,3828.7,0.0164]
[1760187788227,7.68819295,3829.7,3828.6,0.002]
[1760187789033,7.68819295,3829.7,3829.6,0.31834]
[1760187789326,24.49817251,3829.7,3829.6,0.31834]
[1760187789900,2.61185258,3828.7,3828.6,0.002]
[1760187790100,6.50185258,3828.7,3828.6,0.002]
[1760187790435,7.85901386,3828.7,3828.6,0.002]
[1760187795622,5.44321386,3828.7,3828.6,0.002]
[1760187795826,6.50185258,3828.7,3828.6,0.002]
[1760187797029,6.95065258,3828.7,3828.6,0.002]
[1760187798623,4.58185258,3828.7,3828.6,0.002]
[1760187800230,5.03065258,3828.7,3828.6,0.002]
[1760187801177,6.95065258,3828.7,3828.6,0.002]
[1760187801375,7.90689386,3828.7,3828.6,0.002]
[1760187801740,7.90689386,3828.7,3828.2,0.002]
[1760187801741,2.61212548,3828.3,3828.2,0.002]
[1760187801973,2.61239844,3827.9,3827.8,0.002]
[1760187802172,6.73269844,3827.9,3827.8,0.002]
[1760187802354,7.18149844,3827.9,3827.8,0.002]
[1760187802562,8.7886742,3827.9,3827.8,0.002]
[1760187803478,6.8186742,3827.9,3827.8,0.002]
[1760187803781,6.95119844,3827.9,3827.8,0.002]
[1760187803987,7.18149844,3827.9,3827.8,0.002]
[1760187804452,5.21149844,3827.9,3827.8,0.002]
[1760187804652,7.18149844,3827.9,3827.8,0.002]
[1760187807189,4.53239844,3827.9,3827.8,0.002]
[1760187807377,6.95219844,3827.9,3827.8,0.002]
[1760187807681,7.89696873,3827.9,3827.8,0.002]
[1760187808699,5.92596873,3827.9,3827.8,0.002]
[1760187808897,7.18249844,3827.9,3827.8,0.002]
[1760187809467,4.98119844,3827.9,3827.8,0.002]
[1760187809699,6.95219844,3827.9,3827.8,0.002]
[1760187810402,7.18249844,3827.9,3827.8,0.002]
[1760187810900,7.31289844,3827.9,3827.8,0.002]
[1760187811064,8.30541873,3827.9,3827.8,0.002]
[1760187811260,6.33441873,3827.9,3827.8,0.002]
[1760187811498,7.31289844,3827.9,3827.8,0.002]
[1760187813396,5.11159844,3827.9,3827.8,0.002]
[1760187813609,6.63379844,3827.9,3827.8,0.002]
[1760187813763,7.18249844,3827.9,3827.8,0.002]
[1760187816308,5.21149844,3827.9,3827.8,0.002]
[1760187816510,9.53089657,3827.9,3827.8,0.002]
[1760187819669,9.53089657,3827.9,3827.4,0.002]
[1760187819670,2.61267145,3827.5,3827.4,0.002]
[1760187819781,23.94725101,3827.5,3827.4,0.002]
[1760187819984,24.41545101,3827.5,3827.4,0.002]
[1760187820308,25.37169229,3827.5,3827.4,0.002]
[1760187820799,23.40069229,3827.5,3827.4,0.002]
[1760187821000,25.72469229,3827.5,3827.4,0.002]
[1760187823512,23.40069229,3827.5,3827.4,0.002]
[1760187823680,25.72469229,3827.5,3827.4,0.002]
[1760187824078,25.09109229,3827.5,3827.4,0.002]
[1760187825311,22.76709229,3827.5,3827.4,0.002]
[1760187825512,25.09109229,3827.5,3827.4,0.002]
[1760187828912,25.72469229,3827.5,3827.4,0.002]
[1760187833218,4.53294452,3827.1,3827.0,0.002]
[1760187833521,7.4245644,3827.1,3827.0,0.002]
[1760187833700,8.4873644,3827.1,3827.0,0.002]
[1760187836316,8.8403644,3827.1,3827.0,0.002]
[1760187837622,8.8393644,3827.1,3827.0,0.002]
[1760187838315,8.2057644,3827.1,3827.0,0.002]
[1760187838513,6.5153644,3827.1,3827.0,0.002]
[1760187839024,8.8403644,3827.1,3827.0,0.002]
[1760187839729,6.5153644,3827.1,3827.0,0.002]
[1760187839914,8.8403644,3827.1,3827.0,0.002]
[1760187840425,4.96214452,3827.1,3827.0,0.002]
[1760187840624,6.93414452,3827.1,3827.0,0.002]
[1760187842826,7.56774452,3827.1,3827.0,0.002]
[1760187845259,3.24702253,3826.4,3826.3,0.002]
[1760187845412,7.46372478,3826.4,3826.3,0.002]
[1760187845615,7.89292478,3826.4,3826.3,0.002]
[1760187849445,2.61355914,3826.2,3826.1,0.002]
[1760187849638,7.13915914,3826.2,3826.1,0.002]
[1760187849852,7.56835914,3826.2,3826.1,0.002]
[1760187850160,8.61901436,3826.2,3826.1,0.002]
[1760187851067,8.97201436,3826.2,3826.1,0.002]
[1760187852833,6.64701436,3826.2,3826.1,0.002]
[1760187853130,8.97201436,3826.2,3826.1,0.002]
[1760187856265,3.04275914,3826.2,3826.1,0.002]
[1760187856578,2.61321765,3826.7,3826.1,0.7389]
[1760187856737,1.972,3826.6,3826.1,0.6085]
[1760187856935,2.61344628,3826.4,3826.2,14.5]
[1760187857140,4.58549083,3826.3,3826.2,14.5]
[1760187857345,4.58549083,3826.3,3826.2,16.09718]
[1760187857865,4.58549083,3826.3,3826.2,16.40748]
[1760187857866,1.972,3826.3,3826.2,16.40748]
[1760187858243,0.4416,3827.5,3826.2,19.02102296]
[1760187858435,1.972,3827.4,3826.3,0.4407]
[1760187858641,2.6131379,3826.9,3826.3,0.4407]
[1760187858843,1.972,3826.8,3826.4,0.399528]
[1760187859070,1.972,3826.8,3826.5,14.5]
[1760187859246,2.61328594,3826.6,3826.5,14.5]
[1760187859579,5.02688594,3826.6,3826.5,14.5]
[1760187860548,4.58528594,3826.6,3826.5,14.5]
[1760187860749,0.4416,3827.4,3826.5,14.9407]
[1760187860971,2.6131943,3826.8,3826.5,14.9407]
[1760187861146,0.4416,3827.4,3826.5,14.9407]
[1760187861357,0.001,3827.8,3826.6,3.0800944]
[1760187861542,0.001,3827.8,3826.6,3.0800619]
[1760187861543,1.972,3827.7,3826.6,3.0800619]
[1760187861742,1.972,3827.7,3826.7,0.4407]
[1760187861743,1.972,3827.6,3826.7,0.4407]
[1760187861944,1.972,3827.5,3827.3,14.5]
[1760187862139,1.972,3827.4,3827.3,14.5]
[1760187862374,4.58473971,3827.4,3827.3,14.5]
[1760187862667,1.972,3827.4,3827.3,14.5]
[1760187862866,1.972,3827.4,3827.3,15.01043794]
[1760187863443,4.58473971,3827.4,3827.3,14.5]
[1760187863673,5.02633971,3827.4,3827.3,14.5]
[1760187863869,5.02633971,3827.4,3826.1,0.002]
[1760187863870,2.61355914,3826.2,3826.1,0.002]
[1760187864073,1.972,3826.2,3826.1,0.002]
[1760187864272,4.58555914,3826.2,3826.1,0.002]
[1760187864971,5.02715914,3826.2,3826.1,0.002]
[1760187865878,1.972,3826.2,3826.1,0.002]
[1760187866380,1.972,3826.2,3826.1,0.6085]
[1760187866539,0.4416,3827.2,3826.1,2.38334586]
[1760187866746,1.972,3827.1,3826.2,0.02610954]
[1760187866974,0.001,3827.8,3826.4,0.6336]
[1760187867272,2.61279986,3827.4,3826.8,14.5]
[1760187867439,0.376,3827.3,3826.9,0.4407]
[1760187867644,2.61286742,3827.3,3827.0,1.93477]
[1760187867959,0.001,3827.8,3826.2,0.7857836]
[1760187867960,2.61274057,3827.4,3827.2,0.1304]
[1760187868164,2.61297004,3827.1,3826.2,0.4407]
[1760187868344,1.972,3827.0,3826.2,0.4407]
[1760187868674,1.972,3827.0,3826.4,1.92]
[1760187868869,1.972,3827.0,3826.9,0.1304]
[1760187869186,4.5850128,3827.0,3826.9,0.1304]
[1760187869675,2.61281654,3827.3,3826.9,14.6304]
[1760187869884,1.972,3827.2,3826.9,15.0711]
[1760187870380,1.972,3827.2,3826.5,2.61330857]
[1760187870381,0.001,3827.8,3827.0,0.46683012]
[1760187870682,1.971,3827.7,3827.5,0.1304]
[1760187870862,2.61260319,3827.6,3827.5,0.1304]
[1760187871475,2.61260319,3827.6,3827.5,14.6304]
[1760187872048,4.58354816,3827.7,3827.5,14.6304]
[1760187872264,2.61260319,3827.6,3827.5,14.6304]
[1760187875191,3.77391108,3827.6,3827.5,0.1304]
[1760187875487,2.61308379,3826.9,3826.3,0.4407]
[1760187875793,1.971,3826.8,3826.3,0.4407]
[1760187875962,1.971,3826.8,3826.6,2.61322479]
[1760187876161,0.001,3827.8,3826.7,15.09723217]
[1760187876494,2.61280522,3827.4,3826.8,1.95042322]
[1760187876671,0.002,3827.3,3826.8,1.95042322]
[1760187876867,0.002,3827.3,3827.2,0.1304]
[1760187877191,2.61480798,3827.3,3827.2,14.6304]
[1760187877368,3.05640798,3827.3,3827.2,14.6304]
[1760187877570,2.61480798,3827.3,3827.2,14.6304]
[1760187879678,2.61271839,3827.5,3827.2,14.6304]
[1760187879898,2.61280798,3827.3,3827.2,14.6304]
[1760187880080,2.61280798,3827.3,3827.2,0.1304]
[1760187880666,0.1314,3827.8,3827.2,14.6304]
[1760187880874,0.001,3827.8,3827.2,15.0753]
[1760187881214,1.971,3827.7,3827.3,1.95243]
[1760187881364,1.971,3827.7,3827.4,0.4449]
[1760187881572,1.971,3827.7,3827.5,0.4449]
[1760187881870,1.971,3827.7,3827.3,1.50753]
[1760187882103,1.971,3827.7,3827.4,1.90652878]
[1760187882300,1.971,3827.7,3827.2,14.5]
[1760187882492,2.61270492,3827.5,3827.2,14.5]
[1760187882680,4.58374736,3827.4,3827.2,14.5]
[1760187882878,1.971,3827.3,3827.2,14.5]
[1760187883796,1.971,3827.3,3827.2,14.938]
[1760187883975,1.971,3827.3,3827.2,16.69310794]
[1760187885377,1.971,3827.3,3827.2,14.938]
[1760187885583,4.58380798,3827.3,3827.2,14.5]
[1760187886006,5.03360798,3827.3,3827.2,14.5]
[1760187886178,2.61287625,3827.2,3826.1,0.002]
[1760187886503,2.61355914,3826.2,3826.1,0.002]
[1760187886680,4.58455914,3826.2,3826.1,0.002]
[1760187887299,1.971,3826.2,3826.1,0.1678]
[1760187887610,1.971,3826.2,3826.1,0.002]
[1760187887800,4.58455914,3826.2,3826.1,0.002]
[1760187888000,4.58455914,3826.2,3826.1,14.502]
[1760187888908,1.971,3826.2,3826.1,14.502]
[1760187889107,4.58455914,3826.2,3826.1,14.502]
[1760187891078,4.58455914,3826.2,3826.1,14.6324]
[1760187891487,0.001,3826.9,3826.1,14.94]
[1760187891792,0.001,3826.9,3826.2,0.02613559]
[1760187892000,2.61355081,3826.3,3826.1,14.502]
[1760187892204,0.7,3826.2,3826.1,14.502]
[1760187892811,0.7,3826.2,3826.1,14.6324]
[1760187892986,0.7,3826.2,3826.1,15.2362]
[1760187893186,0.7,3826.2,3826.1,16.76002]
[1760187893604,0.7,3826.2,3826.1,15.2362]
[1760187894006,0.7,3826.2,3826.1,14.7982]
[1760187894318,0.7,3826.2,3826.1,15.2362]
[1760187894526,0.7,3826.2,3826.1,14.6324]
[1760187894688,3.31355914,3826.2,3826.1,14.6324]
[1760187895318,0.7,3826.2,3826.1,14.6324]
[1760187896029,0.7,3826.2,3826.1,15.2362]
[1760187896739,1.971,3826.2,3826.1,16.76002]
[1760187897035,0.001,3826.9,3826.1,16.76002]
[1760187897249,0.001,3826.9,3826.2,3.07768944]
[1760187897250,1.971,3826.8,3826.2,3.07768944]
[1760187897536,1.971,3826.8,3826.4,2.61341251]
[1760187897741,1.971,3826.8,3826.7,14.6304]
[1760187897940,1.971,3826.8,3826.7,15.0684]
[1760187898506,1.971,3826.8,3826.7,14.6304]
[1760187898718,4.58414936,3826.8,3826.7,14.6304]
[1760187899524,1.971,3826.8,3826.7,14.6304]
[1760187900038,4.58414936,3826.8,3826.7,14.6304]
[1760187900202,5.75377029,3826.8,3826.7,14.5]
[1760187900603,5.30397029,3826.8,3826.7,14.5]
[1760187900833,2.61328594,3826.6,3826.5,0.1304]
[1760187901014,2.61355914,3826.2,3826.1,0.002]
[1760187901321,4.58455914,3826.2,3826.1,14.502]
[1760187902500,5.03435914,3826.2,3826.1,14.502]
[1760187902705,5.79914199,3826.2,3826.1,14.502]
[1760187904439,5.79914199,3826.2,3826.1,0.002]
[1760187904936,7.71914199,3826.2,3826.1,0.002]
[1760187909042,5.29834199,3826.2,3826.1,0.002]
[1760187909242,6.50455914,3826.2,3826.1,0.002]
[1760187909444,6.95435914,3826.2,3826.1,0.002]
[1760187910234,2.61376408,3825.9,3825.8,0.002]
[1760187910434,6.73136408,3825.9,3825.8,0.002]
[1760187910631,7.18116408,3825.9,3825.8,0.002]
[1760187910932,8.42200393,3825.9,3825.8,0.002]
[1760187916438,8.77600393,3825.9,3825.8,0.002]
[1760187917470,6.45100393,3825.9,3825.8,0.002]
[1760187917658,8.77600393,3825.9,3825.8,0.002]
[1760187919864,6.45100393,3825.9,3825.8,0.002]
[1760187920076,8.77600393,3825.9,3825.8,0.002]
[1760187920766,2.74416408,3825.9,3825.8,0.002]
[1760187920985,2.61376408,3825.9,3825.8,0.002]
[1760187921183,4.58576408,3825.9,3825.8,0.1324]
[1760187921473,1.972,3825.9,3825.8,15.0876]
[1760187922570,4.58576408,3825.9,3825.8,14.6324]
[1760187923638,5.05446408,3825.9,3825.8,14.6324]
[1760187924068,5.05446408,3825.9,3825.8,0.002]
[1760187924369,6.01327374,3825.9,3825.8,0.002]
[1760187924885,7.93327374,3825.9,3825.8,0.002]
[1760187925382,8.56687374,3825.9,3825.8,0.002]
[1760187925578,5.16763738,3825.5,3825.4,0.002]
[1760187925781,8.12283581,3825.5,3825.4,0.002]
[1760187925988,8.59153581,3825.5,3825.4,0.002]
[1760187929800,8.94453581,3825.5,3825.4,0.002]
[1760187933059,6.61953581,3825.5,3825.4,0.002]
[1760187933288,8.94453581,3825.5,3825.4,0.002]
[1760187934888,8.31093581,3825.5,3825.4,0.002]
[1760187936582,8.31093581,3825.5,3821.1,2.34606086]
[1760187936583,3.24791073,3825.1,3821.1,2.34606086]
[1760187936900,3.24791073,3825.1,3820.9,2.61712204]
[1760187936901,2.61574679,3823.0,3821.6,2.61665237]
[1760187937068,4.58774679,3823.0,3822.8,14.5]
[1760187937584,5.05644679,3823.0,3822.8,14.5]
[1760187939598,7.74365334,3823.0,3821.2,0.4552]
[1760187939894,7.74365334,3823.0,3821.0,0.447]
[1760187940096,7.74365334,3823.0,3822.2,14.5]
[1760187941698,8.37725334,3823.0,3820.8,0.447]
[1760187942185,8.37725334,3823.0,3821.1,14.5]
[1760187944299,8.37725334,3823.0,3821.2,0.02616978]
[1760187944300,8.73125334,3823.0,3821.2,0.02616978]
[1760187944473,6.40525334,3823.0,3821.2,0.02616978]
[1760187944685,8.73125334,3823.0,3821.2,2.64314848]
[1760187944895,8.73125334,3823.0,3821.1,14.5]
[1760187945286,3.2496205,3822.6,3821.1,14.5]
[1760187945486,23.98829018,3822.6,3821.1,14.5]
[1760187945903,24.44149018,3822.6,3821.1,14.5]
[1760187946580,24.44149018,3822.6,3821.1,14.6304]
[1760187947173,24.44149018,3822.6,3821.1,14.5]
[1760187948986,24.44149018,3822.6,3820.9,0.1304]
[1760187949196,3.24975738,3822.4,3820.9,0.1304]
[1760187949380,5.16989428,3822.2,3820.5,0.1304]
[1760187949709,5.16989428,3822.2,3820.9,14.5]
[1760187950012,5.62309428,3822.2,3820.9,14.5]
[1760187950623,4.98949428,3822.2,3820.9,14.5]
[1760187950912,4.98949428,3822.2,3821.1,0.1304]
[1760187951074,4.98949428,3822.2,3820.9,14.5]
[1760187951075,4.98949428,3822.2,3821.4,0.1304]
[1760187951282,3.06949428,3822.2,3821.4,0.1304]
[1760187951504,4.58929428,3822.2,3821.7,0.1304]
[1760187951701,5.04249428,3822.2,3821.7,0.1304]
[1760187952194,5.04249428,3822.2,3821.8,14.5]
[1760187952782,5.04249428,3822.2,3821.7,0.1304]
[1760187953179,5.04249428,3822.2,3821.7,14.6304]
[1760187953692,4.58929428,3822.2,3821.7,14.6304]
[1760187953892,5.04249428,3822.2,3821.7,14.6304]
[1760187955724,5.04249428,3822.2,3821.7,0.1304]
[1760187959033,7.74139945,3822.2,3821.2,14.5]
[1760187959219,7.74139945,3822.2,3821.2,14.6304]
[1760187959403,7.74139945,3822.2,3821.7,0.002]
[1760187960307,4.98949428,3822.2,3821.7,0.002]
[1760187960510,6.51029428,3822.2,3821.7,0.002]
[1760187960821,6.96349428,3822.2,3821.7,0.002]
[1760187960999,4.98949428,3822.2,3821.7,0.002]
[1760187961204,6.51029428,3822.2,3821.7,0.002]
[1760187961401,6.51029428,3822.2,3821.8,0.1304]
[1760187961711,6.96349428,3822.2,3821.8,0.1304]
[1760187963042,7.93459945,3822.2,3821.7,0.002]
[1760187964633,8.56819945,3822.2,3821.7,0.002]
[1760187966827,3.25044199,3821.4,3821.3,0.002]
[1760187967034,7.14444199,3821.4,3821.3,0.002]
[1760187967329,7.59764199,3821.4,3821.3,0.002]
[1760187967516,6.66673127,3821.4,3821.3,0.002]
[1760187967717,8.99373127,3821.4,3821.3,0.002]
[1760187968502,6.66673127,3821.4,3821.3,0.002]
[1760187968704,5.34304199,3821.4,3821.3,0.002]
[1760187968903,4.99004199,3821.4,3821.3,0.002]
[1760187969334,6.96404199,3821.4,3821.3,0.002]
[1760187970535,7.59764199,3821.4,3821.3,0.002]
[1760187970739,5.62364199,3821.4,3821.3,0.002]
[1760187970939,8.79633127,3821.4,3821.3,0.002]
[1760187971565,8.16273127,3821.4,3821.3,0.002]
[1760187971875,7.31704199,3821.4,3821.3,0.002]
[1760187972042,6.96404199,3821.4,3821.3,0.002]
[1760187972537,2.96975084,3821.6,3821.3,0.002]
[1760187972538,0.1304,3821.7,3821.3,0.002]
[1760187972836,2.61684199,3821.4,3821.3,0.002]
[1760187973048,4.59084199,3821.4,3821.3,0.002]
[1760187973645,0.1304,3821.7,3821.3,0.002]
[1760187973853,0.001,3822.9,3821.4,0.1304]
[1760187973854,4.59075481,3821.6,3821.4,0.1304]
[1760187974049,4.59077351,3821.5,3821.4,0.1304]
[1760187974451,1.974,3821.5,3821.4,0.1304]
[1760187974658,4.59077351,3821.5,3821.4,0.1304]
[1760187975379,2.61684199,3821.4,3821.3,0.002]
[1760187975599,3.65807802,3821.4,3821.3,0.002]
[1760187975879,6.66937802,3821.4,3821.3,0.002]
[1760187978245,8.99637802,3821.4,3821.3,0.002]
[1760187979444,7.02237802,3821.4,3820.9,0.002]
[1760187979648,7.02237802,3821.4,3820.5,0.002]
[1760187979649,5.17098993,3820.6,3820.5,0.002]
[1760187979861,7.93685874,3820.6,3820.5,0.002]
[1760187980149,8.39455874,3820.6,3820.5,0.002]
[1760187981579,6.42055874,3820.6,3820.5,0.002]
[1760187982077,8.74755874,3820.6,3820.5,0.002]
[1760187986180,8.74755874,3820.6,3817.0,0.4698]
[1760187986181,2.61909729,3818.2,3817.0,0.4698]
[1760187986369,1.974,3818.1,3817.1,0.49599789]
[1760187986570,1.974,3818.0,3817.4,0.6336]
[1760187986778,0.2216,3819.2,3818.2,2.61898082]
[1760187986779,2.6184104,3819.2,3818.2,2.61898082]
[1760187986961,0.2216,3819.6,3818.3,0.92368629]
[1760187987166,1.92,3819.4,3818.3,3.28074967]
[1760187987495,1.974,3819.3,3818.5,2.61877171]
[1760187987791,1.974,3819.2,3818.6,0.0261876]
[1760187988094,1.974,3819.2,3818.6,0.4959876]
[1760187988557,1.974,3819.2,3818.6,3.08855313]
[1760187988754,1.974,3819.2,3818.9,2.6185304]
[1760187988978,1.974,3819.2,3819.0,0.02618486]
[1760187989170,2.61847077,3819.1,3818.1,0.1658]
[1760187989371,2.4317,3819.2,3818.4,2.61885285]
[1760187989372,1.975,3819.0,3818.4,2.61885285]
[1760187989580,1.975,3819.0,3818.5,0.02618829]
[1760187989772,1.975,3819.0,3818.7,2.61868743]
[1760187989969,1.975,3819.0,3818.9,2.61855508]
[1760187990172,1.975,3819.5,3819.1,2.61838763]
[1760187990372,1.975,3819.9,3819.8,2.61788006]
[1760187990689,2.617668,3820.2,3819.3,1.92]
[1760187990870,1.975,3820.1,3819.4,0.57953436]
[1760187991068,1.975,3820.0,3819.4,0.57953436]
[1760187991282,0.353,3820.3,3819.5,3.08792512]
[1760187991484,1.975,3820.2,3819.6,2.61807519]
[1760187991823,2.61684399,3821.4,3820.5,2.61745369]
[1760187992090,1.975,3821.3,3820.6,0.4698]
[1760187992289,0.001,3822.5,3820.6,0.4698]
[1760187992290,1.975,3821.2,3820.6,0.4698]
[1760187992493,1.975,3821.1,3820.7,0.01073466]
[1760187992887,1.975,3821.1,3820.8,0.30979908]
[1760187993063,1.975,3821.1,3820.9,0.01073409]
[1760187993491,1.975,3821.1,3821.0,0.4698]
[1760187993695,1.975,3821.1,3820.8,0.30979908]
[1760187993864,1.975,3821.1,3820.6,0.4698]
[1760187993865,1.976,3821.1,3820.6,0.4698]
[1760187994468,1.976,3821.1,3820.7,0.4698]
[1760187994663,1.976,3821.1,3820.8,3.11316117]
[1760187994894,1.976,3821.1,3820.9,0.4698]
[1760187995098,1.976,3821.1,3820.2,0.6336]